Workbook

Sheet Analysis and Reporting
B4: Statement of Activities
D5: 2014 | F5: 2013
D6: Jan 1-June31
B8: Revenue
C9: Revenue from Donations | D9: - | F9: =50784*60 -> 3047040
C10: Total Revenue | D10: - | F10: =SUM(F9) -> 3047040
L11: 2014 | M11: 2013
B12: Expenses | K12: Project Expenses | L12: =D13/$D$22 -> 0.695522109 | M12: =F13/F$22 -> 0.7791252909
C13: Project Expenses | D13: ='2014 Summary'!J5 -> 372000 | F13: ='Summary 2013'!O11 -> 186500 | K13: Living Stipends | L13: 0.06857062728 | M13: - | P13: 890
C14: Living Stipends | D14: ='2014 Summary'!J6 -> 36675 | F14: - | K14: Rent | L14: 0.0420678695 | M14: =F15/F$22 -> 0.02047031595
C15: Rent | D15: ='2014 Summary'!J7 -> 22500 | F15: ='Summary 2013'!O12 -> 4900 | K15: Facility Development | L15: 0.0652182855 | M15: 0.05105046142
C16: Facility Development | D16: ='2014 Summary'!J8 -> 34882 | F16: ='Summary 2013'!O13 -> 12220 | K16: Office Supplies | L16: 0.08701131158 | M16: 0.08639308855
C17: Office Supplies | D17: ='2014 Summary'!J9 -> 46538 | F17: ='Summary 2013'!O14 -> 20680 | K17: Internet/Telephone | L17: 0.01899598018 | M17: 0.0149851068
C18: Internet/Telephone | D18: ='2014 Summary'!J10 -> 10160 | F18: ='Summary 2013'!O15 -> 3587 | K18: Community Mobilization | L18: 0.007703094326 | M18: 0.02976133283
C19: Community Mobilization | D19: ='2014 Summary'!J11 -> 4120 | F19: ='Summary 2013'!O16 -> 7124 | K19: Travel | L19: 0.01491072263 | M19: 0.01821440358
C20: Travel | D20: ='2014 Summary'!J12 -> 7975 | F20: ='Summary 2013'!O17 -> 4360
C22: Total Expenses | D22: =SUM(D6:D20) -> 534850 | F22: =SUM(F13:F20) -> 239371
B24: Revenue over expenses | D24: =-D22 -> -534850 | F24: =F10-F22 -> 2807669
C25: In U.S. Dollars | D25: =D24/60 -> -8914.166667 | F25: =F24/60 -> 46794.48333
C26: Conversion Rate: 60Rs/Dollar

Sheet 2014 Summary
D2: January | E2: February | F2: March | G2: April | H2: May | I2: June
D3: 2014-01-01 | E3: 2014-02-01 | F3: 2014-03-01 | G3: 2014-04-01 | H3: 2014-05-01 | I3: 2014-06-01 | J3: Total
A5: Cultural Events | C5: Salaries | D5: =SUMIFS('Details 2014'!$E:$E,'Details 2014'!$C:$C,$C5,'Details 2014'!$A:$A,D$2) -> 35000 | E5: =SUMIFS('Details 2014'!$E:$E,'Details 2014'!$C:$C,$C5,'Details 2014'!$A:$A,E$2) -> 66000 | F5: =SUMIFS('Details 2014'!$E:$E,'Details 2014'!$C:$C,$C5,'Details 2014'!$A:$A,F$2) -> 66000 | G5: =SUMIFS('Details 2014'!$E:$E,'Details 2014'!$C:$C,$C5,'Details 2014'!$A:$A,G$2) -> 66000 | H5: =SUMIFS('Details 2014'!$E:$E,'Details 2014'!$C:$C,$C5,'Details 2014'!$A:$A,H$2) -> 68000 | I5: =SUMIFS('Details 2014'!$E:$E,'Details 2014'!$C:$C,$C5,'Details 2014'!$A:$A,I$2) -> 71000 | J5: =SUM(D5:I5) -> 372000 | K5: =J5/$J$13 -> 0.695522109
A6: House supplies | C6: Living Stipends | D6: =SUMIFS('Details 2014'!$E:$E,'Details 2014'!$C:$C,"Misc",'Details 2014'!$A:$A,D$2) -> 10000 | E6: =SUMIFS('Details 2014'!$E:$E,'Details 2014'!$C:$C,"Misc",'Details 2014'!$A:$A,E$2) -> 7500 | F6: =SUMIFS('Details 2014'!$E:$E,'Details 2014'!$C:$C,"Misc",'Details 2014'!$A:$A,F$2) -> 3325 | G6: =SUMIFS('Details 2014'!$E:$E,'Details 2014'!$C:$C,"Misc",'Details 2014'!$A:$A,G$2) -> 2250 | H6: =SUMIFS('Details 2014'!$E:$E,'Details 2014'!$C:$C,"Misc",'Details 2014'!$A:$A,H$2) -> 6355 | I6: =SUMIFS('Details 2014'!$E:$E,'Details 2014'!$C:$C,"Misc",'Details 2014'!$A:$A,I$2) -> 7245 | J6: =SUM(D6:I6) -> 36675 | K6: 0.06857062728
A7: Salaries | C7: Rent | D7: =SUMIFS('Details 2014'!$E:$E,'Details 2014'!$C:$C,$C7,'Details 2014'!$A:$A,D$2) -> 3600 | E7: =SUMIFS('Details 2014'!$E:$E,'Details 2014'!$C:$C,$C7,'Details 2014'!$A:$A,E$2) -> 3600 | F7: =SUMIFS('Details 2014'!$E:$E,'Details 2014'!$C:$C,$C7,'Details 2014'!$A:$A,F$2) -> 3600 | G7: =SUMIFS('Details 2014'!$E:$E,'Details 2014'!$C:$C,$C7,'Details 2014'!$A:$A,G$2) -> 3600 | H7: =SUMIFS('Details 2014'!$E:$E,'Details 2014'!$C:$C,$C7,'Details 2014'!$A:$A,H$2) -> 3600 | I7: =SUMIFS('Details 2014'!$E:$E,'Details 2014'!$C:$C,$C7,'Details 2014'!$A:$A,I$2) -> 4500 | J7: 22500 | K7: 0.0420678695
A8: Miscellaneous | C8: Facility Development | D8: =SUMIFS('Details 2014'!$E:$E,'Details 2014'!$C:$C,"Maintenance and Repairs",'Details 2014'!$A:$A,D$2)+SUMIFS('Details 2014'!$E:$E,'Details 2014'!$C:$C,"House supplies",'Details 2014'!$A:$A,D$2) -> 10135 | E8: =SUMIFS('Details 2014'!$E:$E,'Details 2014'!$C:$C,"Maintenance and Repairs",'Details 2014'!$A:$A,E$2)+SUMIFS('Details 2014'!$E:$E,'Details 2014'!$C:$C,"House supplies",'Details 2014'!$A:$A,E$2) -> 600 | F8: =SUMIFS('Details 2014'!$E:$E,'Details 2014'!$C:$C,"Maintenance and Repairs",'Details 2014'!$A:$A,F$2)+SUMIFS('Details 2014'!$E:$E,'Details 2014'!$C:$C,"House supplies",'Details 2014'!$A:$A,F$2) -> 8960 | G8: =SUMIFS('Details 2014'!$E:$E,'Details 2014'!$C:$C,"Maintenance and Repairs",'Details 2014'!$A:$A,G$2)+SUMIFS('Details 2014'!$E:$E,'Details 2014'!$C:$C,"House supplies",'Details 2014'!$A:$A,G$2) -> 300 | H8: =SUMIFS('Details 2014'!$E:$E,'Details 2014'!$C:$C,"Maintenance and Repairs",'Details 2014'!$A:$A,H$2)+SUMIFS('Details 2014'!$E:$E,'Details 2014'!$C:$C,"House supplies",'Details 2014'!$A:$A,H$2) -> 1025 | I8: =SUMIFS('Details 2014'!$E:$E,'Details 2014'!$C:$C,"Maintenance and Repairs",'Details 2014'!$A:$A,I$2)+SUMIFS('Details 2014'!$E:$E,'Details 2014'!$C:$C,"House supplies",'Details 2014'!$A:$A,I$2) -> 13862 | J8: 34882 | K8: 0.0652182855
A9: Advertising/ Marketing | C9: Office Supplies | D9: =SUMIFS('Details 2014'!$E:$E,'Details 2014'!$C:$C,$C9,'Details 2014'!$A:$A,D$2) -> 30635 | E9: =SUMIFS('Details 2014'!$E:$E,'Details 2014'!$C:$C,$C9,'Details 2014'!$A:$A,E$2) -> 4938 | F9: =SUMIFS('Details 2014'!$E:$E,'Details 2014'!$C:$C,$C9,'Details 2014'!$A:$A,F$2) -> 2890 | G9: =SUMIFS('Details 2014'!$E:$E,'Details 2014'!$C:$C,$C9,'Details 2014'!$A:$A,G$2) -> 1410 | H9: =SUMIFS('Details 2014'!$E:$E,'Details 2014'!$C:$C,$C9,'Details 2014'!$A:$A,H$2) -> 4690 | I9: =SUMIFS('Details 2014'!$E:$E,'Details 2014'!$C:$C,$C9,'Details 2014'!$A:$A,I$2) -> 1975 | J9: 46538 | K9: 0.08701131158
A10: Shipping and storage | C10: Internet/Telephone | D10: =SUMIFS('Details 2014'!$E:$E,'Details 2014'!$C:$C,$C10,'Details 2014'!$A:$A,D$2) -> 1450 | E10: =SUMIFS('Details 2014'!$E:$E,'Details 2014'!$C:$C,$C10,'Details 2014'!$A:$A,E$2) -> 1200 | F10: =SUMIFS('Details 2014'!$E:$E,'Details 2014'!$C:$C,$C10,'Details 2014'!$A:$A,F$2) -> 3100 | G10: =SUMIFS('Details 2014'!$E:$E,'Details 2014'!$C:$C,$C10,'Details 2014'!$A:$A,G$2) -> 1100 | H10: =SUMIFS('Details 2014'!$E:$E,'Details 2014'!$C:$C,$C10,'Details 2014'!$A:$A,H$2) -> 1360 | I10: =SUMIFS('Details 2014'!$E:$E,'Details 2014'!$C:$C,$C10,'Details 2014'!$A:$A,I$2) -> 1950 | J10: 10160 | K10: 0.01899598018
A11: Rent | C11: Community Mobilization | D11: =SUMIFS('Details 2014'!$E:$E,'Details 2014'!$C:$C,$C11,'Details 2014'!$A:$A,D$2) -> 2850 | E11: =SUMIFS('Details 2014'!$E:$E,'Details 2014'!$C:$C,$C11,'Details 2014'!$A:$A,E$2) -> 0 | F11: =SUMIFS('Details 2014'!$E:$E,'Details 2014'!$C:$C,$C11,'Details 2014'!$A:$A,F$2) -> 0 | G11: =SUMIFS('Details 2014'!$E:$E,'Details 2014'!$C:$C,$C11,'Details 2014'!$A:$A,G$2) -> 0 | H11: =SUMIFS('Details 2014'!$E:$E,'Details 2014'!$C:$C,$C11,'Details 2014'!$A:$A,H$2) -> 500 | I11: =SUMIFS('Details 2014'!$E:$E,'Details 2014'!$C:$C,$C11,'Details 2014'!$A:$A,I$2) -> 770 | J11: 4120 | K11: 0.007703094326
A12: Delivery Costs | C12: Travel | D12: =SUMIFS('Details 2014'!$E:$E,'Details 2014'!$C:$C,$C12,'Details 2014'!$A:$A,D$2) -> 775 | E12: =SUMIFS('Details 2014'!$E:$E,'Details 2014'!$C:$C,$C12,'Details 2014'!$A:$A,E$2) -> 0 | F12: =SUMIFS('Details 2014'!$E:$E,'Details 2014'!$C:$C,$C12,'Details 2014'!$A:$A,F$2) -> 0 | G12: =SUMIFS('Details 2014'!$E:$E,'Details 2014'!$C:$C,$C12,'Details 2014'!$A:$A,G$2) -> 0 | H12: =SUMIFS('Details 2014'!$E:$E,'Details 2014'!$C:$C,$C12,'Details 2014'!$A:$A,H$2) -> 4600 | I12: =SUMIFS('Details 2014'!$E:$E,'Details 2014'!$C:$C,$C12,'Details 2014'!$A:$A,I$2) -> 2600 | J12: 7975 | K12: 0.01491072263
A13: Utilities | J13: =SUM(J5:J12) -> 534850
A14: Dues and Subscriptions | K14: =SUM(K5:K12) -> 1
A15: Fundraising Costs
A16: Internet/ Telephone
A17: Computers/ Technology
A18: Professional Services
A19: Maintenance and Repairs
A20: Office supplies
A21: Travel
A22: Training & Design
A23: Partnerships
A24: Fellowship

Sheet Summary 2013
N1: ÷
C8: January | D8: February | E8: March | F8: April | G8: May | H8: June | I8: July | J8: August | K8: September | L8: October | M8: November | N8: December | O8: Total
C9: 2013-01-01 | D9: 2013-02-01 | E9: 2013-03-01 | F9: 2013-04-01 | G9: 2013-05-01 | H9: 2013-06-01 | I9: 2013-07-01 | J9: 2013-08-01 | K9: 2013-09-01 | L9: 2013-10-01 | M9: 2013-11-01 | N9: 2013-12-01 | O9: 2013
O10: Rs | P10: Dollars | Q10: Dollars | R10: Dollars
A11: Salaries | B11: Salaries | C11: =SUMIFS('Details 2013'!$C:$C,'Details 2013'!$B:$B,'Summary 2013'!$B11,'Details 2013'!$A:$A,'Summary 2013'!C$8) -> 10000 | D11: =SUMIFS('Details 2013'!$C:$C,'Details 2013'!$B:$B,'Summary 2013'!$B11,'Details 2013'!$A:$A,'Summary 2013'!D$8) -> 10000 | E11: =SUMIFS('Details 2013'!$C:$C,'Details 2013'!$B:$B,'Summary 2013'!$B11,'Details 2013'!$A:$A,'Summary 2013'!E$8) -> 10000 | F11: =SUMIFS('Details 2013'!$C:$C,'Details 2013'!$B:$B,'Summary 2013'!$B11,'Details 2013'!$A:$A,'Summary 2013'!F$8) -> 10000 | G11: =SUMIFS('Details 2013'!$C:$C,'Details 2013'!$B:$B,'Summary 2013'!$B11,'Details 2013'!$A:$A,'Summary 2013'!G$8) -> 10000 | H11: =SUMIFS('Details 2013'!$C:$C,'Details 2013'!$B:$B,'Summary 2013'!$B11,'Details 2013'!$A:$A,'Summary 2013'!H$8) -> 10000 | I11: =SUMIFS('Details 2013'!$C:$C,'Details 2013'!$B:$B,'Summary 2013'!$B11,'Details 2013'!$A:$A,'Summary 2013'!I$8) -> 10000 | J11: =SUMIFS('Details 2013'!$C:$C,'Details 2013'!$B:$B,'Summary 2013'!$B11,'Details 2013'!$A:$A,'Summary 2013'!J$8) -> 13000 | K11: =SUMIFS('Details 2013'!$C:$C,'Details 2013'!$B:$B,'Summary 2013'!$B11,'Details 2013'!$A:$A,'Summary 2013'!K$8) -> 13000 | L11: =SUMIFS('Details 2013'!$C:$C,'Details 2013'!$B:$B,'Summary 2013'!$B11,'Details 2013'!$A:$A,'Summary 2013'!L$8) -> 15000 | M11: =SUMIFS('Details 2013'!$C:$C,'Details 2013'!$B:$B,'Summary 2013'!$B11,'Details 2013'!$A:$A,'Summary 2013'!M$8) -> 33000 | N11: =SUMIFS('Details 2013'!$C:$C,'Details 2013'!$B:$B,'Summary 2013'!$B11,'Details 2013'!$A:$A,'Summary 2013'!N$8) -> 42500 | O11: =SUM(C11:N11) -> 186500 | P11: =O11*0.016 -> 2984 | Q11: =O11/60 -> 3108.333333 | R11: =O11/55 -> 3390.909091 | S11: =O11*0.017 -> 3170.5
A12: Living Stipends | B12: Rent | C12: =SUMIFS('Details 2013'!$C:$C,'Details 2013'!$B:$B,'Summary 2013'!$B12,'Details 2013'!$A:$A,'Summary 2013'!C$8)+SUMIFS('Details 2013'!$C:$C,'Details 2013'!$B:$B,"Utilities",'Details 2013'!$A:$A,'Summary 2013'!C$8) -> 100 | D12: =SUMIFS('Details 2013'!$C:$C,'Details 2013'!$B:$B,'Summary 2013'!$B12,'Details 2013'!$A:$A,'Summary 2013'!D$8)+SUMIFS('Details 2013'!$C:$C,'Details 2013'!$B:$B,"Utilities",'Details 2013'!$A:$A,'Summary 2013'!D$8) -> 100 | E12: =SUMIFS('Details 2013'!$C:$C,'Details 2013'!$B:$B,'Summary 2013'!$B12,'Details 2013'!$A:$A,'Summary 2013'!E$8)+SUMIFS('Details 2013'!$C:$C,'Details 2013'!$B:$B,"Utilities",'Details 2013'!$A:$A,'Summary 2013'!E$8) -> 100 | F12: =SUMIFS('Details 2013'!$C:$C,'Details 2013'!$B:$B,'Summary 2013'!$B12,'Details 2013'!$A:$A,'Summary 2013'!F$8)+SUMIFS('Details 2013'!$C:$C,'Details 2013'!$B:$B,"Utilities",'Details 2013'!$A:$A,'Summary 2013'!F$8) -> 200 | G12: =SUMIFS('Details 2013'!$C:$C,'Details 2013'!$B:$B,'Summary 2013'!$B12,'Details 2013'!$A:$A,'Summary 2013'!G$8)+SUMIFS('Details 2013'!$C:$C,'Details 2013'!$B:$B,"Utilities",'Details 2013'!$A:$A,'Summary 2013'!G$8) -> 100 | H12: =SUMIFS('Details 2013'!$C:$C,'Details 2013'!$B:$B,'Summary 2013'!$B12,'Details 2013'!$A:$A,'Summary 2013'!H$8)+SUMIFS('Details 2013'!$C:$C,'Details 2013'!$B:$B,"Utilities",'Details 2013'!$A:$A,'Summary 2013'!H$8) -> 100 | I12: =SUMIFS('Details 2013'!$C:$C,'Details 2013'!$B:$B,'Summary 2013'!$B12,'Details 2013'!$A:$A,'Summary 2013'!I$8)+SUMIFS('Details 2013'!$C:$C,'Details 2013'!$B:$B,"Utilities",'Details 2013'!$A:$A,'Summary 2013'!I$8) -> 100 | J12: =SUMIFS('Details 2013'!$C:$C,'Details 2013'!$B:$B,'Summary 2013'!$B12,'Details 2013'!$A:$A,'Summary 2013'!J$8)+SUMIFS('Details 2013'!$C:$C,'Details 2013'!$B:$B,"Utilities",'Details 2013'!$A:$A,'Summary 2013'!J$8) -> 100 | K12: =SUMIFS('Details 2013'!$C:$C,'Details 2013'!$B:$B,'Summary 2013'!$B12,'Details 2013'!$A:$A,'Summary 2013'!K$8)+SUMIFS('Details 2013'!$C:$C,'Details 2013'!$B:$B,"Utilities",'Details 2013'!$A:$A,'Summary 2013'!K$8) -> 100 | L12: =SUMIFS('Details 2013'!$C:$C,'Details 2013'!$B:$B,'Summary 2013'!$B12,'Details 2013'!$A:$A,'Summary 2013'!L$8)+SUMIFS('Details 2013'!$C:$C,'Details 2013'!$B:$B,"Utilities",'Details 2013'!$A:$A,'Summary 2013'!L$8) -> 100 | M12: =SUMIFS('Details 2013'!$C:$C,'Details 2013'!$B:$B,'Summary 2013'!$B12,'Details 2013'!$A:$A,'Summary 2013'!M$8)+SUMIFS('Details 2013'!$C:$C,'Details 2013'!$B:$B,"Utilities",'Details 2013'!$A:$A,'Summary 2013'!M$8) -> 100 | N12: =SUMIFS('Details 2013'!$C:$C,'Details 2013'!$B:$B,'Summary 2013'!$B12,'Details 2013'!$A:$A,'Summary 2013'!N$8)+SUMIFS('Details 2013'!$C:$C,'Details 2013'!$B:$B,"Utilities",'Details 2013'!$A:$A,'Summary 2013'!N$8) -> 3700 | O12: =SUM(C12:N12) -> 4900 | P12: =O12*0.016 -> 78.4 | Q12: =O12/60 -> 81.66666667 | R12: =O12/55 -> 89.09090909 | S12: =O12*0.017 -> 83.3
A13: Rent | B13: Facility Development | C13: =SUMIFS('Details 2013'!$C:$C,'Details 2013'!$A:$A,C8,'Details 2013'!$B:$B,"Maintenance and Repairs")+SUMIFS('Details 2013'!$C:$C,'Details 2013'!$A:$A,C8,'Details 2013'!$B:$B,"House Supplies") -> 0 | D13: =SUMIFS('Details 2013'!$C:$C,'Details 2013'!$A:$A,D8,'Details 2013'!$B:$B,"Maintenance and Repairs")+SUMIFS('Details 2013'!$C:$C,'Details 2013'!$A:$A,D8,'Details 2013'!$B:$B,"House Supplies") -> 0 | E13: =SUMIFS('Details 2013'!$C:$C,'Details 2013'!$A:$A,E8,'Details 2013'!$B:$B,"Maintenance and Repairs")+SUMIFS('Details 2013'!$C:$C,'Details 2013'!$A:$A,E8,'Details 2013'!$B:$B,"House Supplies") -> 0 | F13: =SUMIFS('Details 2013'!$C:$C,'Details 2013'!$A:$A,F8,'Details 2013'!$B:$B,"Maintenance and Repairs")+SUMIFS('Details 2013'!$C:$C,'Details 2013'!$A:$A,F8,'Details 2013'!$B:$B,"House Supplies") -> 1030 | G13: =SUMIFS('Details 2013'!$C:$C,'Details 2013'!$A:$A,G8,'Details 2013'!$B:$B,"Maintenance and Repairs")+SUMIFS('Details 2013'!$C:$C,'Details 2013'!$A:$A,G8,'Details 2013'!$B:$B,"House Supplies") -> 75 | H13: =SUMIFS('Details 2013'!$C:$C,'Details 2013'!$A:$A,H8,'Details 2013'!$B:$B,"Maintenance and Repairs")+SUMIFS('Details 2013'!$C:$C,'Details 2013'!$A:$A,H8,'Details 2013'!$B:$B,"House Supplies") -> 200 | I13: =SUMIFS('Details 2013'!$C:$C,'Details 2013'!$A:$A,I8,'Details 2013'!$B:$B,"Maintenance and Repairs")+SUMIFS('Details 2013'!$C:$C,'Details 2013'!$A:$A,I8,'Details 2013'!$B:$B,"House Supplies") -> 1000 | J13: =SUMIFS('Details 2013'!$C:$C,'Details 2013'!$A:$A,J8,'Details 2013'!$B:$B,"Maintenance and Repairs")+SUMIFS('Details 2013'!$C:$C,'Details 2013'!$A:$A,J8,'Details 2013'!$B:$B,"House Supplies") -> 4400 | K13: =SUMIFS('Details 2013'!$C:$C,'Details 2013'!$A:$A,K8,'Details 2013'!$B:$B,"Maintenance and Repairs")+SUMIFS('Details 2013'!$C:$C,'Details 2013'!$A:$A,K8,'Details 2013'!$B:$B,"House Supplies") -> 2472 | L13: =SUMIFS('Details 2013'!$C:$C,'Details 2013'!$A:$A,L8,'Details 2013'!$B:$B,"Maintenance and Repairs")+SUMIFS('Details 2013'!$C:$C,'Details 2013'!$A:$A,L8,'Details 2013'!$B:$B,"House Supplies") -> 1174 | M13: =SUMIFS('Details 2013'!$C:$C,'Details 2013'!$A:$A,M8,'Details 2013'!$B:$B,"Maintenance and Repairs")+SUMIFS('Details 2013'!$C:$C,'Details 2013'!$A:$A,M8,'Details 2013'!$B:$B,"House Supplies") -> 515 | N13: =SUMIFS('Details 2013'!$C:$C,'Details 2013'!$A:$A,N8,'Details 2013'!$B:$B,"Maintenance and Repairs")+SUMIFS('Details 2013'!$C:$C,'Details 2013'!$A:$A,N8,'Details 2013'!$B:$B,"House Supplies") -> 1354 | O13: 12220 | P13: 195.52 | Q13: 203.6666667 | R13: 222.1818182 | S13: 207.74
A14: Facility Development | B14: Office Supplies | C14: =SUMIFS('Details 2013'!$C:$C,'Details 2013'!$A:$A,'Summary 2013'!C$8,'Details 2013'!$B:$B,'Summary 2013'!$B14) -> 0 | D14: =SUMIFS('Details 2013'!$C:$C,'Details 2013'!$A:$A,'Summary 2013'!D$8,'Details 2013'!$B:$B,'Summary 2013'!$B14) -> 0 | E14: =SUMIFS('Details 2013'!$C:$C,'Details 2013'!$A:$A,'Summary 2013'!E$8,'Details 2013'!$B:$B,'Summary 2013'!$B14) -> 872 | F14: =SUMIFS('Details 2013'!$C:$C,'Details 2013'!$A:$A,'Summary 2013'!F$8,'Details 2013'!$B:$B,'Summary 2013'!$B14) -> 85 | G14: =SUMIFS('Details 2013'!$C:$C,'Details 2013'!$A:$A,'Summary 2013'!G$8,'Details 2013'!$B:$B,'Summary 2013'!$B14) -> 4032 | H14: =SUMIFS('Details 2013'!$C:$C,'Details 2013'!$A:$A,'Summary 2013'!H$8,'Details 2013'!$B:$B,'Summary 2013'!$B14) -> 0 | I14: =SUMIFS('Details 2013'!$C:$C,'Details 2013'!$A:$A,'Summary 2013'!I$8,'Details 2013'!$B:$B,'Summary 2013'!$B14) -> 6910 | J14: =SUMIFS('Details 2013'!$C:$C,'Details 2013'!$A:$A,'Summary 2013'!J$8,'Details 2013'!$B:$B,'Summary 2013'!$B14) -> 563 | K14: =SUMIFS('Details 2013'!$C:$C,'Details 2013'!$A:$A,'Summary 2013'!K$8,'Details 2013'!$B:$B,'Summary 2013'!$B14) -> 950 | L14: =SUMIFS('Details 2013'!$C:$C,'Details 2013'!$A:$A,'Summary 2013'!L$8,'Details 2013'!$B:$B,'Summary 2013'!$B14) -> 5497 | M14: =SUMIFS('Details 2013'!$C:$C,'Details 2013'!$A:$A,'Summary 2013'!M$8,'Details 2013'!$B:$B,'Summary 2013'!$B14) -> 55 | N14: =SUMIFS('Details 2013'!$C:$C,'Details 2013'!$A:$A,'Summary 2013'!N$8,'Details 2013'!$B:$B,'Summary 2013'!$B14) -> 1716 | O14: 20680 | P14: 330.88 | Q14: 344.6666667 | R14: 376 | S14: 351.56
A15: Office Supplies | B15: Internet/Telephone | C15: =SUMIFS('Details 2013'!$C:$C,'Details 2013'!$A:$A,'Summary 2013'!C$8,'Details 2013'!$B:$B,'Summary 2013'!$B15) -> 0 | D15: =SUMIFS('Details 2013'!$C:$C,'Details 2013'!$A:$A,'Summary 2013'!D$8,'Details 2013'!$B:$B,'Summary 2013'!$B15) -> 0 | E15: =SUMIFS('Details 2013'!$C:$C,'Details 2013'!$A:$A,'Summary 2013'!E$8,'Details 2013'!$B:$B,'Summary 2013'!$B15) -> 197 | F15: =SUMIFS('Details 2013'!$C:$C,'Details 2013'!$A:$A,'Summary 2013'!F$8,'Details 2013'!$B:$B,'Summary 2013'!$B15) -> 197 | G15: =SUMIFS('Details 2013'!$C:$C,'Details 2013'!$A:$A,'Summary 2013'!G$8,'Details 2013'!$B:$B,'Summary 2013'!$B15) -> 197 | H15: =SUMIFS('Details 2013'!$C:$C,'Details 2013'!$A:$A,'Summary 2013'!H$8,'Details 2013'!$B:$B,'Summary 2013'!$B15) -> 197 | I15: =SUMIFS('Details 2013'!$C:$C,'Details 2013'!$A:$A,'Summary 2013'!I$8,'Details 2013'!$B:$B,'Summary 2013'!$B15) -> 0 | J15: =SUMIFS('Details 2013'!$C:$C,'Details 2013'!$A:$A,'Summary 2013'!J$8,'Details 2013'!$B:$B,'Summary 2013'!$B15) -> 197 | K15: =SUMIFS('Details 2013'!$C:$C,'Details 2013'!$A:$A,'Summary 2013'!K$8,'Details 2013'!$B:$B,'Summary 2013'!$B15) -> 2000 | L15: =SUMIFS('Details 2013'!$C:$C,'Details 2013'!$A:$A,'Summary 2013'!L$8,'Details 2013'!$B:$B,'Summary 2013'!$B15) -> 250 | M15: =SUMIFS('Details 2013'!$C:$C,'Details 2013'!$A:$A,'Summary 2013'!M$8,'Details 2013'!$B:$B,'Summary 2013'!$B15) -> 352 | N15: =SUMIFS('Details 2013'!$C:$C,'Details 2013'!$A:$A,'Summary 2013'!N$8,'Details 2013'!$B:$B,'Summary 2013'!$B15) -> 0 | O15: 3587 | P15: 57.392 | Q15: 59.78333333 | R15: 65.21818182 | S15: 60.979
A16: Internet/Telephone | B16: Community Mobilization | C16: =SUMIFS('Details 2013'!$C:$C,'Details 2013'!$A:$A,'Summary 2013'!C$8,'Details 2013'!$B:$B,'Summary 2013'!$B16) -> 0 | D16: =SUMIFS('Details 2013'!$C:$C,'Details 2013'!$A:$A,'Summary 2013'!D$8,'Details 2013'!$B:$B,'Summary 2013'!$B16) -> 0 | E16: =SUMIFS('Details 2013'!$C:$C,'Details 2013'!$A:$A,'Summary 2013'!E$8,'Details 2013'!$B:$B,'Summary 2013'!$B16) -> 0 | F16: =SUMIFS('Details 2013'!$C:$C,'Details 2013'!$A:$A,'Summary 2013'!F$8,'Details 2013'!$B:$B,'Summary 2013'!$B16) -> 0 | G16: =SUMIFS('Details 2013'!$C:$C,'Details 2013'!$A:$A,'Summary 2013'!G$8,'Details 2013'!$B:$B,'Summary 2013'!$B16) -> 0 | H16: =SUMIFS('Details 2013'!$C:$C,'Details 2013'!$A:$A,'Summary 2013'!H$8,'Details 2013'!$B:$B,'Summary 2013'!$B16) -> 0 | I16: =SUMIFS('Details 2013'!$C:$C,'Details 2013'!$A:$A,'Summary 2013'!I$8,'Details 2013'!$B:$B,'Summary 2013'!$B16) -> 0 | J16: =SUMIFS('Details 2013'!$C:$C,'Details 2013'!$A:$A,'Summary 2013'!J$8,'Details 2013'!$B:$B,'Summary 2013'!$B16) -> 800 | K16: =SUMIFS('Details 2013'!$C:$C,'Details 2013'!$A:$A,'Summary 2013'!K$8,'Details 2013'!$B:$B,'Summary 2013'!$B16) -> 0 | L16: =SUMIFS('Details 2013'!$C:$C,'Details 2013'!$A:$A,'Summary 2013'!L$8,'Details 2013'!$B:$B,'Summary 2013'!$B16) -> 0 | M16: =SUMIFS('Details 2013'!$C:$C,'Details 2013'!$A:$A,'Summary 2013'!M$8,'Details 2013'!$B:$B,'Summary 2013'!$B16) -> 1675 | N16: =SUMIFS('Details 2013'!$C:$C,'Details 2013'!$A:$A,'Summary 2013'!N$8,'Details 2013'!$B:$B,'Summary 2013'!$B16) -> 4649 | O16: 7124 | P16: 113.984 | Q16: 118.7333333 | R16: 129.5272727 | S16: 121.108
A17: Community Mobilization | B17: Travel | C17: =SUMIFS('Details 2013'!$C:$C,'Details 2013'!$A:$A,'Summary 2013'!C$8,'Details 2013'!$B:$B,'Summary 2013'!$B17) -> 0 | D17: =SUMIFS('Details 2013'!$C:$C,'Details 2013'!$A:$A,'Summary 2013'!D$8,'Details 2013'!$B:$B,'Summary 2013'!$B17) -> 0 | E17: =SUMIFS('Details 2013'!$C:$C,'Details 2013'!$A:$A,'Summary 2013'!E$8,'Details 2013'!$B:$B,'Summary 2013'!$B17) -> 0 | F17: =SUMIFS('Details 2013'!$C:$C,'Details 2013'!$A:$A,'Summary 2013'!F$8,'Details 2013'!$B:$B,'Summary 2013'!$B17) -> 0 | G17: =SUMIFS('Details 2013'!$C:$C,'Details 2013'!$A:$A,'Summary 2013'!G$8,'Details 2013'!$B:$B,'Summary 2013'!$B17) -> 0 | H17: =SUMIFS('Details 2013'!$C:$C,'Details 2013'!$A:$A,'Summary 2013'!H$8,'Details 2013'!$B:$B,'Summary 2013'!$B17) -> 0 | I17: =SUMIFS('Details 2013'!$C:$C,'Details 2013'!$A:$A,'Summary 2013'!I$8,'Details 2013'!$B:$B,'Summary 2013'!$B17) -> 250 | J17: =SUMIFS('Details 2013'!$C:$C,'Details 2013'!$A:$A,'Summary 2013'!J$8,'Details 2013'!$B:$B,'Summary 2013'!$B17) -> 3300 | K17: =SUMIFS('Details 2013'!$C:$C,'Details 2013'!$A:$A,'Summary 2013'!K$8,'Details 2013'!$B:$B,'Summary 2013'!$B17) -> 500 | L17: =SUMIFS('Details 2013'!$C:$C,'Details 2013'!$A:$A,'Summary 2013'!L$8,'Details 2013'!$B:$B,'Summary 2013'!$B17) -> 60 | M17: =SUMIFS('Details 2013'!$C:$C,'Details 2013'!$A:$A,'Summary 2013'!M$8,'Details 2013'!$B:$B,'Summary 2013'!$B17) -> 0 | N17: =SUMIFS('Details 2013'!$C:$C,'Details 2013'!$A:$A,'Summary 2013'!N$8,'Details 2013'!$B:$B,'Summary 2013'!$B17) -> 250 | O17: 4360 | P17: 69.76 | Q17: 72.66666667 | R17: 79.27272727 | S17: 74.12
A18: Travel | N18: Total | O18: =SUM(O11:O17) -> 239371 | P18: 3829.936 | Q18: 3989.516667 | R18: 4352.2 | S18: 4069.307
B24: Income
B25: 2012 Crowdfunding | C25: 10000
B26: Private Donations | C26: 5000
B27: 2013 Crowdfunding Campaign | C27: 50784
C29: 2012 | F29: 1796704
B30: Building | C30: 8000 | F30: 15628
F31: =F30+F29 -> 1812332

Sheet Details 2014
A1: Month | B1: Qtr | C1: Category | D1: Line Item | E1: Cost | F1: Date
A2: January | C2: Salaries | E2: 35000
A3: January | C3: Rent | E3: 3600
A4: January | C4: Maintenance and Repairs | E4: 6040
A5: January | C5: House Supplies | E5: 4095
A6: January | C6: Office supplies | E6: 30635
A7: January | C7: Travel | E7: 775
A8: January | C8: Internet/Telephone | E8: 1450
A9: January | C9: Dues and Subscriptions | E9: 300
A10: January | C10: Community Mobilization | E10: 2850
A11: January | C11: Computers/ Technology | E11: 1000
A12: January | C12: Professional Services | E12: 1800
A13: January | C13: Misc | E13: 10000
A14: February | C14: Misc | E14: 7500
A15: February | C15: Salaries | E15: 66000
A16: February | C16: Rent | E16: 3600
A17: February | C17: Internet/Telephone | E17: 1200
A18: February | C18: Dues and Subscriptions | E18: 300
A19: February | C19: House supplies | E19: 3780
A20: February | C20: Office supplies | E20: 4938
A21: February | C21: Maintenance and Repairs | E21: 600
A22: March | B22: 1 | C22: Office Supplies | D22: Pencils | E22: 90
A23: March | B23: 1 | C23: Internet/Telephone | D23: sam cell phone | E23: 100
A24: March | B24: 1 | C24: Office Supplies | D24: Pencils | E24: 100
A25: March | B25: 1 | C25: House Supplies | D25: gas | E25: 300
A26: March | B26: 1 | C26: Maintenance & Repairs | D26: basti gate | E26: 800
A27: March | B27: 1 | C27: Maintenance & Repairs | D27: drain making | E27: 1017
A28: March | B28: 1 | C28: Maintenance & Repairs | D28: hand pump | E28: 170
A29: March | B29: 1 | C29: House Supplies | D29: cabinet | E29: 5150
A30: March | B30: 1 | C30: Misc | D30: Vegetables | E30: 1100
A31: March | B31: 1 | C31: Misc | D31: Emily Food | E31: 150
A32: March | B32: 1 | C32: Misc | D32: Sam Food | E32: 150
A33: March | B33: 1 | C33: Internet/Telephone | D33: Zubin Mobile Recharge | E33: 200
A34: March | B34: 1 | C34: House Supplies | D34: Flour | E34: 140
A35: March | B35: 1 | C35: Misc | D35: Sam Food | E35: 50
A36: March | B36: 1 | C36: Misc | D36: Emily Food | E36: 50
A37: March | B37: 1 | C37: House Supplies | D37: Milk Basti | E37: 160
A38: March | B38: 1 | C38: House Supplies | D38: Milk | E38: 160
A39: March | B39: 1 | C39: Maintenance & Repairs | D39: Gate & Materials | E39: 1877
A40: March | B40: 1 | C40: Misc | D40: Nishat Misc | E40: 50
A41: March | B41: 1 | C41: Misc | D41: Ganesh $ owed for January | E41: 400
A42: March | B42: 1 | C42: Office Supplies | D42: 2 ceiling fans | E42: 2600
A43: March | B43: 1 | C43: House Supplies | D43: Standing fan | E43: 1200
A44: March | B44: 1 | C44: Maintenance & Repairs | D44: Gate | E44: 800
A45: March | B45: 1 | C45: Rent | D45: Rent | E45: 3600
A46: March | B46: 1 | C46: Internet/Telephone | D46: 2 Months + Reactivation | E46: 2800
A47: March | B47: 1 | C47: Dues & Subscriptions | D47: Newspaper | E47: 300
A48: March | B48: 1 | C48: Misc | D48: Oats & Peanut Butter | E48: 500 | F48: 2014-03-23
A49: March | B49: 1 | C49: Misc | D49: Sam Lunch | E49: 25 | F49: 2014-03-25
A50: March | B50: 1 | C50: House Supplies | D50: Basketball & Rim | E50: 1750 | F50: 2014-03-23
A51: March | B51: 1 | C51: House Supplies | D51: Squeegy | E51: 100 | F51: 2014-03-25
A52: March | B52: 1 | C52: Misc | D52: Vegetables | E52: 375 | F52: 2014-03-26
A53: March | B53: 1 | C53: Transportation | D53: Cultelbari Trip | E53: 150 | F53: 2014-03-26
A54: March | C54: Misc | D54: Chai | E54: 30 | F54: 2014-03-26
A55: March | C55: Misc | D55: sam food | E55: 50 | F55: 2014-03-27
A56: March | C56: Office Supplies | D56: Outing Mobilization | E56: 50 | F56: 2014-03-27
A57: March | C57: Misc | D57: Food | E57: 40 | F57: 2014-03-28
A58: March | C58: Misc | D58: Water | E58: 45 | F58: 2014-03-28
A59: March | C59: Misc | D59: Eggs | E59: 40 | F59: 2014-03-28
A60: March | C60: Office Supplies | D60: Print | E60: 50 | F60: 2014-03-28
A61: March | C61: Misc | D61: Dinner | E61: 200 | F61: 2014-03-30
A62: March | C62: Transportation | D62: Baisa | E62: 112 | F62: 2014-03-31
A63: March | C63: Misc | D63: Sam Food | E63: 70 | F63: 2014-03-31
A64: March | C64: Salaries | D64: Salaries | E64: 66000
A65: April | C65: Misc | E65: 2250
A66: April | C66: Rent | E66: 3600
A67: April | C67: Internet/Telephone | E67: 1100
A68: April | C68: Maintenance & Repairs | D68: Cement | E68: 935
A69: April | C69: Maintenance & Repairs | D69: cement transport | E69: 110
A70: April | C70: Maintenance & Repairs | D70: fridge transport | E70: 40
A71: April | C71: Maintenance & Repairs | D71: bamboo | E71: 1200
A72: April | C72: Office Supplies | D72: photo copy | E72: 170
A73: April | C73: Office Supplies | D73: photo copy | E73: 40
A74: April | C74: House Supplies | D74: propane | E74: 300
A75: April | C75: Subscription | D75: Newspaper | E75: 90
A76: April | C76: Training | D76: reading camp | E76: 1480
A77: April | C77: Training | D77: Angenwadi | E77: 525
A78: April | C78: Salaries | D78: Salaries | E78: 66000
A79: April | C79: Office Supplies | D79: fan | E79: 1200
A80: May | C80: Office Supplies | D80: Printer | E80: 1000 | I80: May | K80: Office Supplies | L80: Printer | M80: 1000
A81: May | C81: Misc | D81: Subzi | E81: 100 | I81: May | K81: Misc | L81: Subzi | M81: 100
A82: May | C82: Office Supplies | D82: Tape | E82: 40 | I82: May | K82: Office Supplies | L82: Tape | M82: 40
A83: May | C83: Office Supplies | D83: photo copy | E83: 20 | I83: May | K83: Office Supplies | L83: photo copy | M83: 20
A84: May | C84: Maintenance & Repairs | D84: Wall | E84: 510 | I84: May | K84: Maintenance & Repairs | L84: Wall | M84: 510
A85: May | C85: Office Supplies | D85: Cardboard | E85: 200 | I85: May | K85: Office Supplies | L85: Cardboard | M85: 200
A86: May | C86: Office Supplies | D86: Teaching Materials | E86: 30 | I86: May | K86: Office Supplies | L86: Teaching Materials | M86: 30
A87: May | C87: Maintenance & Repairs | D87: Fan | E87: 2876 | I87: May | K87: Maintenance & Repairs | L87: Fan | M87: 2876
A88: May | C88: Misc | D88: Food (Sam) | E88: 2000 | I88: May | K88: Misc | L88: Food (Sam) | M88: 2000
A89: May | C89: Misc | D89: Food (Jason) | E89: 1000 | I89: May | K89: Misc | L89: Food (Jason) | M89: 1000
A90: May | C90: Misc | D90: Food (Carolina) | E90: 1000 | I90: May | K90: Misc | L90: Food (Carolina) | M90: 1000
A91: May | C91: Office Supplies | D91: Business Card & Angewadi Booklet | E91: 3300 | I91: May | K91: Office Supplies | L91: Business Card & Angewadi Booklet | M91: 3300
A92: May | C92: Misc | D92: Vegetables | E92: 50 | I92: May | K92: Misc | L92: Vegetables | M92: 50
A93: May | C93: Maintenance & Repairs | D93: Wall | E93: 680 | I93: May | K93: Maintenance & Repairs | L93: Wall | M93: 680
A94: May | C94: Maintenance & Repairs | D94: Cement & Sand | E94: 500 | I94: May | K94: Maintenance & Repairs | L94: Cement & Sand | M94: 500
A95: May | C95: House Supplies | D95: Broom | E95: 60 | I95: May | K95: House Supplies | L95: Broom | M95: 60
A96: May | C96: House Supplies | D96: kersone | E96: 20 | I96: May | K96: House Supplies | L96: kersone | M96: 20
A97: May | C97: House Supplies | D97: paint | E97: 120 | I97: May | K97: House Supplies | L97: paint | M97: 120
A98: May | C98: Maintenance & Repairs | D98: Transport of wall | E98: 180 | I98: May | K98: Maintenance & Repairs | L98: Transport of wall | M98: 180
A99: May | C99: Maintenance & Repairs | D99: labor | E99: 1000 | H99: Cultural Events | I99: May | K99: Maintenance & Repairs | L99: labor | M99: 1000
A100: May | C100: House Supplies | D100: mat | E100: 445 | H100: House supplies | I100: May | K100: House Supplies | L100: mat | M100: 445
A101: May | C101: Misc | D101: cook | E101: 500 | H101: Salaries | I101: May | K101: Misc | L101: cook | M101: 500
A102: May | C102: Misc | D102: tea | E102: 100 | H102: Miscellaneous | I102: May | K102: Misc | L102: tea | M102: 100
A103: May | C103: Travel | D103: Ben taxi | E103: 2400 | H103: Advertising/ Marketing | I103: May | K103: Travel | L103: Ben taxi | M103: 2400
A104: May | C104: Maintenance & Repairs | D104: labor | E104: 50 | H104: Shipping and storage | I104: May | K104: Maintenance & Repairs | L104: labor | M104: 50
A105: May | C105: Misc | D105: Food (Sam) | E105: 500 | H105: Rent | I105: May | K105: Misc | L105: Food (Sam) | M105: 500
A106: May | C106: House Supplies | D106: Cleaning materials | E106: 200 | H106: Delivery Costs | I106: May | K106: House Supplies | L106: Cleaning materials | M106: 200
A107: May | C107: Office Supplies | D107: Rope | E107: 100 | H107: Utilities | I107: May | K107: Office Supplies | L107: Rope | M107: 100
A108: May | C108: Misc | D108: Breakfast | E108: 175 | H108: Dues and Subscriptions | I108: May | K108: Misc | L108: Breakfast | M108: 175
A109: May | C109: Misc | D109: Vegetables | E109: 100 | H109: Fundraising Costs | I109: May | K109: Misc | L109: Vegetables | M109: 100
A110: May | C110: Misc | D110: Flour | E110: 140 | H110: Internet/ Telephone | I110: May | K110: Misc | L110: Flour | M110: 140
A111: May | C111: House Supplies | D111: Net | E111: 180 | H111: Computers/ Technology | I111: May | K111: House Supplies | L111: Net | M111: 180
A112: May | C112: Travel | D112: Taxi | E112: 2200 | H112: Professional Services | I112: May | K112: Travel | L112: Taxi | M112: 2200
A113: May | C113: Misc | D113: Food (Sam) | E113: 100 | H113: Maintenance and Repairs | I113: May | K113: Misc | L113: Food (Sam) | M113: 100
A114: May | C114: Misc | D114: Vegatables | E114: 100 | H114: Office supplies | I114: May | K114: Misc | L114: Vegatables | M114: 100
A115: May | C115: Misc | D115: food | E115: 180 | H115: Travel | I115: May | K115: Misc | L115: food | M115: 180
A116: May | C116: Misc | D116: Vegatables | E116: 100 | H116: Training & Design | I116: May | K116: Misc | L116: Vegatables | M116: 100
A117: May | C117: Internet/Telephone | D117: Data | E117: 260 | H117: Partnerships | I117: May | K117: Internet/Telephone | L117: Data | M117: 260
A118: May | C118: Community Mobilization | D118: Wedding gift | E118: 500 | H118: Fellowship | I118: May | K118: Cultural Event | L118: Wedding gift | M118: 500
A119: May | C119: Misc | D119: Dinner | E119: 160 | I119: May | K119: Misc | L119: Dinner | M119: 160
A120: May | C120: Maintenance & Repairs | D120: Learning center room | E120: 1000 | I120: May | K120: Maintenance & Repairs | L120: Learning center room | M120: 1000
A121: May | C121: Misc | D121: Tea | E121: 50 | I121: May | K121: Misc | L121: Tea | M121: 50
A122: May | C122: Salaries | D122: Salaries | E122: 14500 | I122: May | K122: Salaries | L122: Salaries | M122: 14500
A123: May | C123: Salaries | D123: sweety, anmol, neha, munni | E123: 10000 | I123: May | K123: Salaries | L123: sweety, anmol, neha, munni | M123: 10000
A124: May | C124: Salaries | D124: abdoh, ganesh, razia, zubin, nishat | E124: 43500 | I124: May | K124: Salaries | L124: abdoh, ganesh, razia, zubin, nishat | M124: 43500
A125: May | C125: Rent | D125: Rent | E125: 3600 | I125: May | K125: Rent | L125: Rent | M125: 3600
A126: May | C126: Internet/Telephone | D126: Internet | E126: 1100 | I126: May | K126: Internet/Telephone | L126: Internet | M126: 1100
A127: June | C127: Misc | D127: Flour | E127: 160
A128: June | C128: Misc | D128: Bananas | E128: 75
A129: June | C129: Internet/Telephone | D129: Sim Cards (2gb data) | E129: 500
A130: June | C130: Misc | D130: Medicine | E130: 175
A131: June | C131: Misc | D131: Water | E131: 115
A132: June | C132: House Supplies | D132: 2 Mattresses | E132: 1500
A133: June | C133: House Supplies | D133: 3 Nets | E133: 350
A134: June | C134: House Supplies | D134: Boots | E134: 7700
A135: June | C135: Office Supplies | D135: Printing | E135: 700
A136: June | C136: Misc | D136: Chai & Water | E136: 140
A137: June | C137: Office Supplies | D137: String | E137: 45
A138: June | C138: Misc | D138: Water | E138: 75
A139: June | C139: Misc | D139: Water | E139: 60
A140: June | C140: House Supplies | D140: Silverware | E140: 85
A141: June | C141: House Supplies | D141: Buckets | E141: 570
A142: June | C142: Misc | D142: 2 Sandals | E142: 170
A143: June | C143: House Supplies | D143: Soap | E143: 50 | I143: 30000
A144: June | C144: Misc | D144: Fruit | E144: 180
A145: June | C145: Office Supplies | D145: Printing | E145: 230
A146: June | C146: Misc | D146: Vegatables | E146: 175
A147: June | C147: Misc | D147: Chai | E147: 80
A148: June | C148: Travel | D148: Taxi | E148: 2500
A149: June | C149: Misc | D149: Water | E149: 63
A150: June | C150: Misc | D150: Apples | E150: 100
A151: June | C151: Misc | D151: Chai | E151: 75
A152: June | C152: Misc | D152: Rice | E152: 100
A153: June | C153: House Supplies | D153: Net | E153: 270
A154: June | C154: House Supplies | D154: Generater | E154: 1000
A155: June | C155: House Supplies | D155: Pillows | E155: 150
A156: June | C156: Misc | D156: Water | E156: 45
A157: June | C157: Misc | D157: Rice | E157: 50
A158: June | C158: Misc | D158: Subzi | E158: 370
A159: June | C159: Office Supplies | D159: Copy | E159: 250
A160: June | C160: Misc | D160: Dinner | E160: 300
A161: June | C161: Misc | D161: Subzi | E161: 150
A162: June | C162: Misc | D162: Water | E162: 113
A163: June | C163: Misc | D163: Flour | E163: 150
A164: June | C164: Misc | D164: Chai & Somosa | E164: 120
A165: June | C165: House Supplies | D165: Sheet | E165: 230
A166: June | C166: Community Mobilization | D166: Razia (Party) | E166: 770
A167: June | C167: House Supplies | D167: Gas | E167: 480
A168: June | C168: Misc | D168: Roti | E168: 250
A169: June
A170: June | C170: Misc | D170: Subzi | E170: 100
A171: June | C171: Maintenance & Repairs | D171: Drain | E171: 100
A172: June
A173: June | C173: Misc | D173: Subzi | E173: 170 | G173: 0
A174: June | C174: Misc | D174: Meal | E174: 30
A175: June | C175: Misc | D175: Chai & Somosa | E175: 50
A176: June | C176: Misc | D176: Dinner | E176: 375
A177: June | C177: Misc | D177: Jamie Dinner | E177: 40
A178: June | C178: Misc | D178: Breakfast | E178: 20
A179: June | C179: House Supplies | D179: Flashlight | E179: 90
A180: June | C180: House Supplies | D180: Bucket | E180: 100
A181: June | C181: Misc | D181: Bananas | E181: 50
A182: June | C182: Office Supplies | D182: Tape | E182: 25
A183: June | C183: Misc | D183: Fruit | E183: 130
A184: June | C184: Misc | D184: Subji | E184: 60
A185: June | C185: Misc | D185: Bread | E185: 24
A186: June | C186: Office Supplies | D186: Design Thinking | E186: 500
A187: June | C187: Misc | D187: Akshay | E187: 100
A188: June | C188: Misc | D188: Abodh | E188: 240
A189: June | C189: Office Supplies | D189: Printing | E189: 30
A190: June | C190: Misc | D190: Breakfast | E190: 30
A191: June | C191: Misc | D191: Chai | E191: 50
A192: June | C192: Misc | D192: Dinner | E192: 120
A193: June | C193: Misc | D193: Chocolate | E193: 80
A194: June | C194: Misc | D194: Dinner | E194: 200
A195: June | C195: Misc | D195: Jason | E195: 220
A196: June | C196: House Supplies | D196: Toiletries | E196: 307
A197: June | C197: Office Supplies | D197: Pen | E197: 65
A198: June | C198: House Supplies | D198: Cooking tools | E198: 190
A199: June | C199: Misc | D199: Bananas | E199: 30
A200: June | C200: Misc | D200: Food | E200: 300 | H200: 2014-06-12 | I200: Jason 17000 | J200: Sam 17,000
... 28 more rows

Sheet Details 2013
A1: Month | B1: Line Item | C1: Actual
A2: January | B2: Office | C2: 0
A3: January | B3: Salaries | C3: 10000
A4: January | B4: Utilities | C4: 100
A5: January | B5: Delivery Costs | C5: 0
A6: January | B6: Legal and Auditing | C6: 0
A7: January | B7: Office supplies | C7: 0
A8: February | B8: Office | C8: 0
A9: February | B9: Salaries | C9: 10000
A10: February | B10: Utilities | C10: 100
A11: February | B11: Delivery Costs | C11: 0
A12: February | B12: Legal and Auditing | C12: 0
A13: February | B13: Office supplies | C13: 0
A14: March | B14: Office supplies | C14: 872
A15: March | B15: Internet/Telephone | C15: 197
A16: March | B16: Salaries | C16: 10000
A17: March | B17: Utilities | C17: 100
A18: March | B18: Legal and Auditing | C18: 0
A19: March | B19: Office supplies | C19: 0
A20: April | B20: Utilities | C20: 200
A21: April | B21: Salaries | C21: 10000
A22: April | B22: Internet/Telephone | C22: 197
A23: April | B23: Maintenance and Repairs | C23: 1030
A24: April | B24: Office Supplies | C24: 85
A25: April | B25: Miscellaneous | C25: 0
A26: May | B26: Internet/Telephone | C26: 197
A27: May | B27: Office supplies | C27: 4032
A28: May | B28: Maintenance and Repairs | C28: 50
A29: May | B29: Utilities | C29: 100
A30: May | B30: House supplies | C30: 1700
A31: May | B31: Maintenance and Repairs | C31: 25
A32: May | B32: Salaries | C32: 10000
A33: June | B33: Utilities | C33: 100
A34: June | B34: Maintenance and Repairs | C34: 200
A35: June | B35: Internet/Telephone | C35: 197
A36: June | B36: Salaries | C36: 10000
A37: June | B37: Office Supplies | C37: 0
A38: June | B38: Miscellaneous | C38: 0
A39: July | B39: Travel | C39: 250
A40: July | B40: House supplies | C40: 11700
A41: July | B41: Office supplies | C41: 6910
A42: July | B42: Utilities | C42: 100
A43: July | B43: Maintenance and Repairs | C43: 1000
A44: July | B44: Salaries | C44: 10000
A45: August | B45: Travel | C45: 3300
A46: August | B46: Salaries | C46: 13000
A47: August | B47: Maintenance and Repairs | C47: 1000
A48: August | B48: Office supplies | C48: 563
A49: August | B49: Community Mobilization | C49: 800
A50: August | B50: House Supplies | C50: 2350
A51: August | B51: Internet/Telephone | C51: 197
A52: August | B52: Utilities | C52: 100
A53: August | B53: Maintenance and Repairs | C53: 1050
A54: September | B54: Utilities | C54: 100
A55: September | B55: Travel | C55: 500
A56: September | B56: Professional Services | C56: 3465
A57: September | B57: Maintenance and Repairs | C57: 2182
A58: September | B58: Internet/Telephone | C58: 2000
A59: September | B59: House Supplies | C59: 290
A60: September | B60: Office supplies | C60: 950
A61: September | B61: Salaries | C61: 13000
A62: October | B62: Office supplies | C62: 5497
A63: October | B63: House Supplies | C63: 1174
A64: October | B64: Internet/Telephone | C64: 250
A65: October | B65: Travel | C65: 60
A66: October | B66: Salaries | C66: 15000
A67: October | B67: Professional Services | C67: 60
A68: October | B68: Utilities | C68: 100
A69: November | B69: Utilities | C69: 100
A70: November | B70: House Supplies | C70: 515
A71: November | B71: Community Mobilization | C71: 1675
A72: November | B72: Office supplies | C72: 55
A73: November | B73: Internet/Telephone | C73: 352
A74: November | B74: Salaries | C74: 33000
A75: December | B75: Utilities | C75: 100
A76: December | B76: Office supplies | C76: 1716
A77: December | B77: House Supplies | C77: 874
A78: December | B78: Maintenance and Repairs | C78: 480
A79: December | B79: Community Mobilization | C79: 4649
A80: December | B80: Travel | C80: 250
A81: December | B81: Salaries | C81: 42500
A82: December | B82: Rent | C82: 3600

Sheet Sheet1
C1: 2014 | D1: 2013
B2: Project Expenses | C2: 0.695522109 | D2: 0.7791252909
B3: Office Supplies | C3: 0.08701131158 | D3: 0.08639308855
B4: Living Stipends | C4: 0.06857062728 | D4: -
B5: Facility Development | C5: 0.0652182855 | D5: 0.05105046142
B6: Rent | C6: 0.0420678695 | D6: 0.02047031595
B7: Internet/Telephone | C7: 0.01899598018 | D7: 0.0149851068
B8: Travel | C8: 0.01491072263 | D8: 0.01821440358
B9: Community Mobilization | C9: 0.007703094326 | D9: 0.02976133283
